fUST/lending_fUST_20241111
["ID","MTS","AMOUNT","RATE_DAILY","PERIOD"]
[341922772,1731288641975,-500.0,0.00024931,2]
[341922773,1731288641985,-151.0,0.00024931,7]
[341922774,1731288641994,-500.0,0.00024931,2]
[341922775,1731288642004,-247.973568,0.00024931,7]
[341922776,1731288642013,-500.0,0.00024931,2]
[341922777,1731288642023,-764.76,0.00024931,2]
[341922778,1731288642032,-500.0,0.00024931,2]
[341922779,1731288642041,-500.0,0.00024931,2]
[341922780,1731288642050,-500.0,0.00024931,2]
[341922781,1731288642059,-500.0,0.00024931,2]
[341922782,1731288642069,-509.28142649,0.00024931,2]
[341922783,1731288642078,-500.0,0.00024931,2]
[341922784,1731288642088,-519.45323124,0.00024931,2]
[341922785,1731288642098,-1942.56,0.00024931,2]
[341922786,1731288642112,-689.29,0.00024931,2]
[341922787,1731288642121,-500.0,0.00024931,2]
[341922788,1731288642131,-500.0,0.00024931,2]
[341922789,1731288642141,-500.0,0.00024931,2]
[341922790,1731288642150,-500.0,0.00024931,2]
[341922791,1731288642159,-992.26,0.00024931,2]
[341922792,1731288642168,-500.0,0.00024931,2]
[341922793,1731288642179,-1090.86,0.00024931,2]
[341922794,1731288642188,-500.0,0.00024931,2]
[341922795,1731288642197,-500.0,0.00024931,2]
[341922796,1731288642206,-500.0,0.00024931,2]
[341922797,1731288642216,-2336.0,0.00024931,2]
[341922798,1731288642225,-1922.82,0.00024931,2]
[341922799,1731288642235,-500.0,0.00024931,2]
[341922800,1731288642243,-500.0,0.00024931,2]
[341922801,1731288642253,-500.0,0.00024931,2]
[341922802,1731288642262,-500.0,0.00024931,2]
[341922803,1731288642273,-151.0,0.00024931,7]
[341922804,1731288642282,-154.58866,0.00024931,7]
[341922805,1731288642292,-500.0,0.00024931,2]
[341922806,1731288642301,-500.0,0.00024931,2]
[341922807,1731288642310,-500.0,0.00024931,2]
[341922808,1731288642319,-1629.75,0.00024931,2]
[341922809,1731288642329,-500.0,0.00024931,2]
[341922810,1731288642338,-500.0,0.00024931,2]
[341922811,1731288642347,-518.82932555,0.00024931,2]
[341922812,1731288642356,-500.0,0.00024931,2]
[341922813,1731288642365,-500.0,0.00024931,2]
[341922814,1731288642374,-500.0,0.00024931,2]
[341922815,1731288642383,-500.0,0.00024931,2]
[341922816,1731288642392,-500.0,0.00024931,2]
[341922817,1731288642401,-500.0,0.00024931,2]
[341922818,1731288642410,-500.0,0.00024931,2]
[341922819,1731288642419,-547.29663356,0.00024931,2]
[341922821,1731288642429,-500.0,0.00024931,2]
[341922823,1731288642438,-500.0,0.00024931,2]
[341922824,1731288642447,-500.0,0.00024931,2]
[341922826,1731288642456,-500.0,0.00024931,2]
[341922828,1731288642465,-500.0,0.00024931,2]
[341922829,1731288642474,-500.0,0.00024931,2]
[341922830,1731288642483,-1110.9,0.00024931,2]
[341922831,1731288642492,-758.12,0.00024931,2]
[341922832,1731288642501,-500.0,0.00024931,2]
[341922833,1731288642511,-500.0,0.00024931,2]
[341922834,1731288642522,-500.0,0.00024931,2]
[341922835,1731288642531,-500.0,0.00024931,2]
[341922836,1731288642540,-500.0,0.00024931,2]
[341922837,1731288642549,-500.0,0.00024931,2]
[341922838,1731288642558,-500.0,0.00024931,2]
[341922839,1731288642567,-500.0,0.00024931,2]
[341922840,1731288642576,-500.0,0.00024931,2]
[341922841,1731288642585,-500.0,0.00024931,2]
[341922842,1731288642594,-504.06978989,0.00024931,2]
[341922843,1731288642603,-151.0,0.00024931,7]
[341922844,1731288642613,-500.0,0.00024931,2]
[341922845,1731288642622,-3180.02,0.00024931,2]
[341922846,1731288642656,-500.0,0.00024931,2]
[341922847,1731288642666,-515.69,0.00024931,2]
[341922848,1731288642675,-500.0,0.00024931,2]
[341922849,1731288642684,-737.56,0.00024931,2]
[341922850,1731288642693,-1223.0,0.00024931,2]
[341922851,1731288642702,-500.0,0.00024931,2]
[341922852,1731288642711,-863.79,0.00024931,2]
[341922853,1731288642720,-500.0,0.00024931,2]
[341922854,1731288642730,-500.0,0.00024931,15]
[341922855,1731288642739,-500.0,0.00024931,2]
[341922856,1731288642748,-500.0,0.00024931,2]
[341922857,1731288642757,-1146.07,0.00024931,2]
[341922858,1731288642767,-1791.94,0.00024931,2]
[341922859,1731288642776,-500.0,0.00024931,2]
[341922860,1731288642786,-500.0,0.00024931,2]
[341922861,1731288642796,-500.0,0.00024931,2]
[341922862,1731288642806,-1253.37,0.00024931,2]
[341922863,1731288642815,-500.0,0.00024931,2]
[341922864,1731288642825,-500.0,0.00024931,2]
[341922865,1731288642835,-500.0,0.00024931,2]
[341922866,1731288642844,-151.0,0.00024931,7]
[341922867,1731288642854,-500.0,0.00024931,2]
[341922868,1731288642864,-3548.7,0.00024931,2]
[341922869,1731288642874,-597.46,0.00024931,2]
[341922870,1731288642883,-500.0,0.00024931,2]
[341922871,1731288642893,-500.0,0.00024931,2]
[341922872,1731288642903,-500.0,0.00024931,2]
[341922873,1731288642912,-784.33,0.00024931,2]
[341922874,1731288642921,-500.0,0.00024931,2]
[341922875,1731288642931,-551.56,0.00024931,2]
[341922876,1731288642940,-500.0,0.00024931,2]
[341922877,1731288642949,-500.0,0.00024931,2]
[341922878,1731288642959,-1528.88,0.00024931,2]
[341922879,1731288642968,-500.0,0.00024931,2]
[341922880,1731288642978,-1203.74,0.00024931,2]
[341922881,1731288642987,-500.0,0.00024931,2]
[341922882,1731288642996,-500.0,0.00024931,2]
[341922883,1731288643006,-1473.57,0.00024931,2]
[341922884,1731288643016,-500.0,0.00024931,2]
[341922885,1731288643026,-500.0,0.00024931,2]
[341922886,1731288643035,-151.0,0.00024931,7]
[341922887,1731288643044,-500.0,0.00024931,2]
[341922888,1731288643053,-500.0,0.00024931,2]
[341922889,1731288643062,-500.0,0.00024931,2]
[341922890,1731288643071,-500.0,0.00024931,2]
[341922891,1731288643081,-4250.07,0.00024931,2]
[341922892,1731288643090,-500.0,0.00024931,2]
[341922893,1731288643099,-3429.43,0.00024931,2]
[341922894,1731288643113,-299.954602,0.00024931,7]
[341922895,1731288643122,-500.0,0.00024931,2]
[341922896,1731288643131,-997.47,0.00024931,2]
[341922898,1731288643140,-473.88296568,0.00024931,2]
[341922900,1731288643150,-151.0,0.00024931,7]
[341922901,1731288643159,-743.5,0.00024931,2]
[341922902,1731288643168,-500.0,0.00024931,2]
[341922903,1731288643177,-535.8,0.00024931,2]
[341922904,1731288643189,-608.03,0.00024931,2]
[341922905,1731288643199,-503.44,0.00024931,2]
[341922906,1731288643210,-500.0,0.00024931,2]
[341922907,1731288643219,-278.299778,0.00024931,7]
[341922908,1731288643229,-500.0,0.00024931,2]
[341922909,1731288643238,-545.7655946,0.00024931,2]
[341922910,1731288643247,-537.42,0.00024931,2]
[341922911,1731288643256,-536.53656817,0.00024931,2]
[341922912,1731288643267,-288.533456,0.00024931,7]
[341922913,1731288643277,-16962.25,0.00024931,2]
[341922914,1731288643286,-500.0,0.00024931,2]
[341922916,1731288643295,-500.0,0.00024931,2]
[341922918,1731288643306,-288.533456,0.00024931,7]
[341922920,1731288643315,-1250.74,0.00024931,2]
[341922922,1731288643325,-151.0,0.00024931,7]
[341922924,1731288643334,-500.0,0.00024931,2]
[341922926,1731288643343,-1601.31,0.00024931,2]
[341922928,1731288643352,-503.74565078,0.00024931,2]
[341922930,1731288643361,-574.69,0.00024931,2]
[341922932,1731288643371,-500.0,0.00024931,2]
[341922934,1731288643379,-805.72,0.00024931,2]
[341922936,1731288643388,-406.74958775,0.00024931,2]
[341922938,1731288643398,-352.0,0.00024932,2]
[341922940,1731288643407,-500.0,0.00024973,2]
[341922942,1731288643416,-500.0,0.00024973,2]
[341922944,1731288643425,-500.0,0.00024973,2]
[341922946,1731288643433,-500.0,0.00024973,2]
[341922948,1731288643443,-689.62,0.00024999,2]
[341922950,1731288643452,-689.62,0.00024999,2]
[341922952,1731288643461,-689.62,0.00024999,2]
[341922954,1731288643470,-689.62,0.00024999,2]
[341922956,1731288643479,-689.8450447,0.00024999,2]
[341922958,1731288643489,-2657.09139522,0.00025,2]
[341922960,1731288643497,-30000.0,0.00025,2]
[341922962,1731288643507,-30000.0,0.00025,2]
[341922964,1731288643517,-30000.0,0.00025,2]
[341922966,1731288643526,-352.0,0.00025,2]
[341922968,1731288643536,-151.0,0.00025,7]
[341922970,1731288643545,-151.0,0.00025,7]
[341922972,1731288643554,-500.0,0.00025,17]
[341922974,1731288643564,-151.0,0.00025,7]
[341922976,1731288643573,-302.96970909,0.00025,2]
[341922978,1731288643582,-151.0,0.00025,7]
[341922980,1731288643591,-151.0,0.00025,7]
[341922982,1731288643600,-302.96970909,0.00025,2]
[341922984,1731288643609,-34986.50890365,0.00025,2]
[341922986,1731288643617,-151.0,0.00025,2]
[341922988,1731288643627,-288.533456,0.00025,7]
[341922990,1731288643635,-288.533456,0.00025,7]
[341922992,1731288643645,-7231.3389841,0.00025005,2]
[341922994,1731288643654,-151.0,0.00025105,7]
[341922996,1731288643663,-1173.71279141,0.00025105,2]
[341922998,1731288643672,-150.01,0.00025204,2]
[341923000,1731288643681,-6942.42268995,0.00025204,2]
[341923002,1731288643690,-504.75511089,0.00025205,2]
[341923004,1731288643699,-500.0,0.00025205,2]
[341923006,1731288643709,-500.0,0.00025205,2]
[341923008,1731288643719,-500.0,0.00025205,2]
[341923010,1731288643728,-500.0,0.00025205,2]
[341923012,1731288643738,-167.24414625,0.00025205,2]
[341923014,1731288643747,-180.31954564,0.00025205,2]
[341923077,1731288644387,-29885.33,0.00024821,10]
[341923079,1731288644398,-91.82499638,0.00024899,2]
[341923081,1731288644410,-408.17500362,0.00024899,2]
[341923083,1731288644419,-500.0,0.00024899,2]
[341923085,1731288644429,-500.0,0.00024899,2]
[341923087,1731288644438,-551.68791351,0.00024899,2]
[341923089,1731288644448,-500.0,0.00024899,2]
[341923091,1731288644458,-500.0,0.00024899,2]
[341923093,1731288644467,-500.0,0.00024899,2]
[341923095,1731288644476,-561.01529015,0.00024899,2]
[341923097,1731288644485,-500.0,0.00024899,2]
[341923099,1731288644495,-500.0,0.00024899,2]
[341923101,1731288644504,-500.0,0.00024899,2]
[341923103,1731288644513,-500.0,0.00024899,2]
[341923105,1731288644524,-168.80401799,0.00024899,2]
[341923107,1731288644533,-319.68045436,0.00025205,2]
[341923109,1731288644543,-500.0,0.00025205,2]
[341923111,1731288644552,-500.0,0.00025205,2]
[341923113,1731288644562,-500.0,0.00025205,2]
[341923115,1731288644571,-500.0,0.00025205,2]
[341923117,1731288644580,-500.0,0.00025205,2]
[341923119,1731288644589,-500.0,0.00025205,2]
[341923121,1731288644598,-500.0,0.00025205,2]
[341923123,1731288644608,-500.0,0.00025205,2]
[341923125,1731288644617,-500.0,0.00025205,2]
[341923127,1731288644627,-500.0,0.00025205,2]
[341923129,1731288644637,-500.0,0.00025205,2]
[341923131,1731288644646,-500.0,0.00025205,2]
[341923133,1731288644655,-500.0,0.00025205,2]
[341923136,1731288644665,-500.0,0.00025205,2]
[341923137,1731288644674,-500.0,0.00025205,2]
[341923140,1731288644684,-500.0,0.00025205,2]
[341923142,1731288644694,-500.0,0.00025205,2]
[341923144,1731288644704,-500.0,0.00025205,2]
[341923146,1731288644713,-500.0,0.00025205,2]
[341923148,1731288644723,-500.0,0.00025205,2]
[341923150,1731288644733,-500.0,0.00025205,2]
[341923152,1731288644743,-500.0,0.00025205,2]
[341923154,1731288644753,-672.78,0.00025205,2]
[341923156,1731288644763,-500.0,0.00025205,2]
[341923158,1731288644774,-500.0,0.00025205,2]
[341923160,1731288644784,-456.33013892,0.00025205,2]
[341923162,1731288644794,-355.48558598,0.00025205,2]
[341923164,1731288644810,-144.51441402,0.00025205,2]
[341923166,1731288644820,-500.0,0.00025205,2]
[341923168,1731288644830,-176.2625871,0.00025205,2]
[341923198,1731288646001,-323.7374129,0.00025205,2]
[341923199,1731288646012,-500.0,0.00025205,2]
[341923200,1731288646024,-500.0,0.00025205,2]
[341923201,1731288646034,-500.0,0.00025205,2]
[341923202,1731288646043,-500.0,0.00025205,2]
[341923203,1731288646053,-151.0,0.00025205,7]
[341923204,1731288646063,-151.0,0.00025205,7]
[341923205,1731288646073,-500.0,0.00025205,2]
[341923206,1731288646083,-500.0,0.00025205,2]
[341923207,1731288646094,-764.76,0.00025205,2]
[341923208,1731288646106,-500.0,0.00025205,2]
[341923209,1731288646118,-500.0,0.00025205,2]
[341923210,1731288646128,-500.0,0.00025205,2]
[341923211,1731288646139,-500.0,0.00025205,2]
[341923212,1731288646149,-1942.56,0.00025205,2]
[341923213,1731288646160,-689.29,0.00025205,2]
[341923214,1731288646170,-184.74960974,0.00025205,2]
[341923215,1731288646180,-500.0,0.00025205,2]
[341923216,1731288646192,-500.0,0.00025205,2]
[341923217,1731288646202,-500.0,0.00025205,2]
[341923218,1731288646213,-992.26,0.00025205,2]
[341923219,1731288646223,-500.0,0.00025205,2]
[341923220,1731288646234,-1090.86,0.00025205,2]
[341923221,1731288646244,-500.0,0.00025205,2]
[341923222,1731288646255,-500.0,0.00025205,2]
[341923223,1731288646266,-2336.0,0.00025205,2]
[341923224,1731288646277,-1922.82,0.00025205,2]
[341923225,1731288646287,-500.0,0.00025205,2]
[341923226,1731288646298,-500.0,0.00025205,2]
[341923227,1731288646308,-500.0,0.00025205,2]
[341923228,1731288646319,-500.0,0.00025205,2]
[341923229,1731288646329,-151.0,0.00025205,7]
[341923230,1731288646339,-151.0,0.00025205,7]
[341923231,1731288646350,-500.0,0.00025205,2]
[341923232,1731288646361,-500.0,0.00025205,2]
[341923233,1731288646371,-500.0,0.00025205,2]
[341923234,1731288646380,-1629.75,0.00025205,2]
[341923235,1731288646390,-622.57617989,0.00025205,2]
[341923236,1731288646401,-500.0,0.00025205,2]
[341923237,1731288646411,-500.0,0.00025205,2]
[341923238,1731288646420,-500.0,0.00025205,2]
[341923239,1731288646430,-500.0,0.00025205,2]
[341923240,1731288646441,-500.0,0.00025205,2]
[341923241,1731288646451,-500.0,0.00025205,2]
[341923242,1731288646462,-500.0,0.00025205,2]
[341923243,1731288646473,-500.0,0.00025205,2]
[341923244,1731288646483,-500.0,0.00025205,2]
[341923245,1731288646494,-500.0,0.00025205,2]
[341923246,1731288646505,-500.0,0.00025205,2]
[341923247,1731288646515,-500.0,0.00025205,2]
[341923248,1731288646527,-500.0,0.00025205,2]
[341923249,1731288646537,-500.0,0.00025205,2]
[341923250,1731288646547,-1110.9,0.00025205,2]
[341923251,1731288646558,-758.12,0.00025205,2]
[341923252,1731288646568,-500.0,0.00025205,2]
[341923253,1731288646579,-500.0,0.00025205,2]
[341923254,1731288646589,-500.0,0.00025205,2]
[341923255,1731288646600,-168.24771484,0.00025205,2]
[341923256,1731288646610,-150.02,0.00025205,2]
[341923257,1731288646620,-500.0,0.00025205,2]
[341923258,1731288646630,-272.76770474,0.00025205,2]
[341923259,1731288646640,-500.0,0.00025205,2]
[341923260,1731288646651,-500.0,0.00025205,2]
[341923261,1731288646662,-500.0,0.00025205,2]
[341923262,1731288646673,-512.09136746,0.00025205,2]
[341923263,1731288646683,-151.0,0.00025205,7]
[341923264,1731288646694,-500.0,0.00025205,2]
[341923265,1731288646705,-3180.02,0.00025205,2]
[341923266,1731288646716,-515.69,0.00025205,2]
[341923267,1731288646727,-500.0,0.00025205,2]
[341923268,1731288646738,-737.56,0.00025205,2]
[341923269,1731288646749,-1223.0,0.00025205,2]
[341923270,1731288646760,-500.0,0.00025205,2]
[341923271,1731288646773,-863.79,0.00025205,2]
[341923272,1731288646784,-500.0,0.00025205,2]
[341923273,1731288646795,-582.83204642,0.00025205,15]
[341923274,1731288646805,-500.0,0.00025205,2]
[341923275,1731288646816,-500.0,0.00025205,2]
[341923276,1731288646826,-1146.07,0.00025205,2]
[341923277,1731288646837,-1791.94,0.00025205,2]
[341923278,1731288646848,-500.0,0.00025205,2]
[341923279,1731288646859,-500.0,0.00025205,2]
[341923280,1731288646871,-500.0,0.00025205,2]
[341923281,1731288646883,-1253.37,0.00025205,2]
[341923282,1731288646894,-500.0,0.00025205,2]
[341923283,1731288646904,-500.0,0.00025205,2]
[341923284,1731288646915,-500.0,0.00025205,2]
[341923285,1731288646925,-151.0,0.00025205,7]
[341923286,1731288646936,-3548.7,0.00025205,2]
[341923287,1731288646946,-597.46,0.00025205,2]
[341923288,1731288646957,-500.0,0.00025205,2]
[341923289,1731288646967,-590.0,0.00025205,2]
[341923290,1731288646977,-500.0,0.00025205,2]
[341923291,1731288646987,-784.33,0.00025205,2]
[341923292,1731288646997,-551.56,0.00025205,2]
[341923293,1731288647006,-500.0,0.00025205,2]
[341923294,1731288647019,-500.0,0.00025205,2]
[341923295,1731288647029,-500.0,0.00025205,2]
[341923296,1731288647039,-1528.88,0.00025205,2]
[341923297,1731288647049,-150.02,0.00025205,2]
[341923298,1731288647059,-500.0,0.00025205,2]
[341923299,1731288647068,-1203.74,0.00025205,2]
[341923300,1731288647078,-150.02,0.00025205,2]
[341923301,1731288647088,-500.0,0.00025205,2]
[341923302,1731288647097,-500.0,0.00025205,2]
[341923303,1731288647109,-1473.57,0.00025205,2]
[341923304,1731288647119,-500.0,0.00025205,2]
[341923305,1731288647131,-500.0,0.00025205,2]
[341923306,1731288647141,-500.0,0.00025205,2]
[341923307,1731288647152,-500.0,0.00025205,2]
[341923308,1731288647162,-500.0,0.00025205,2]
[341923309,1731288647172,-4250.07,0.00025205,2]
[341923310,1731288647182,-500.0,0.00025205,2]
[341923311,1731288647192,-3429.43,0.00025205,2]
[341923312,1731288647202,-500.0,0.00025205,2]
[341923313,1731288647212,-997.47,0.00025205,2]
[341923314,1731288647221,-743.5,0.00025205,2]
[341923315,1731288647231,-500.0,0.00025205,2]
[341923316,1731288647240,-535.8,0.00025205,2]
[341923317,1731288647250,-608.03,0.00025205,2]
[341923318,1731288647259,-503.44,0.00025205,2]
[341923319,1731288647271,-500.0,0.00025205,2]
[341923320,1731288647281,-500.0,0.00025205,2]
[341923321,1731288647290,-537.42,0.00025205,2]
[341923322,1731288647299,-288.533456,0.00025205,7]
[341923323,1731288647309,-288.533456,0.00025205,7]
[341923324,1731288647318,-16962.25,0.00025205,2]
[341923325,1731288647327,-182.22895252,0.00025205,2]
[341923326,1731288647337,-500.0,0.00025205,2]
[341923327,1731288647347,-288.533456,0.00025205,7]
[341923328,1731288647358,-288.533456,0.00025205,7]
[341923329,1731288647368,-1250.74,0.00025205,2]
[341923330,1731288647377,-500.0,0.00025205,2]
[341923331,1731288647387,-1601.31,0.00025205,2]
[341923332,1731288647396,-574.69,0.00025205,2]
[341923333,1731288647405,-500.0,0.00025205,2]
[341923334,1731288647415,-805.72,0.00025205,2]
[341923335,1731288647424,-302.96970909,0.0002525,2]
[341923336,1731288647434,-346.15278951,0.00025273,2]
[341923337,1731288647444,-500.0,0.00025273,2]
[341923338,1731288647453,-500.0,0.00025273,2]
[341923339,1731288647463,-500.0,0.00025273,2]
[341923340,1731288647473,-500.0,0.00025273,2]
[341923341,1731288647484,-161.07408135,0.00025273,2]
[341923342,1731288647494,-500.0,0.00025273,2]
[341923343,1731288647503,-500.0,0.00025273,2]
[341923344,1731288647513,-500.0,0.00025273,2]
[341923345,1731288647524,-174.95450255,0.00025288,2]
[341923346,1731288647534,-160.0,0.00025361,6]
[341923347,1731288647543,-186.5,0.000254,2]
[341923348,1731288647553,-513.0,0.000254,2]
[341923349,1731288647563,-500.0,0.00025473,2]
[341923350,1731288647572,-157.20462955,0.00025479,2]
[341923351,1731288647582,-150.17,0.00025479,2]
[341923352,1731288647593,-500.0,0.00025479,2]
[341923353,1731288647603,-500.0,0.00025479,2]
[341923354,1731288647612,-500.0,0.00025479,2]
[341923355,1731288647621,-500.0,0.00025479,2]
[341923356,1731288647631,-500.0,0.00025479,2]
[341923357,1731288647641,-500.0,0.00025479,2]
[341923358,1731288647651,-500.0,0.00025479,2]
[341923359,1731288647661,-599.63390438,0.00025479,2]
[341923360,1731288647671,-500.0,0.00025479,2]
[341923361,1731288647680,-500.0,0.00025479,2]
[341923362,1731288647690,-500.0,0.00025479,2]
[341923363,1731288647699,-465.66992882,0.00025479,2]
[341923364,1731288647709,-441.13017806,0.00025479,2]
[341923365,1731288647718,-500.0,0.00025479,2]
[341923366,1731288647728,-500.0,0.00025479,2]
[341923367,1731288647738,-500.0,0.00025479,2]
[341923368,1731288647748,-500.0,0.00025479,2]
[341923369,1731288647758,-163.40694693,0.00025479,2]
[341923370,1731288647769,-500.0,0.00025479,2]
[341923371,1731288647779,-500.0,0.00025479,2]
[341923372,1731288647934,-500.0,0.00025479,2]
[341923373,1731288647945,-500.0,0.00025479,2]
[341923374,1731288647955,-500.0,0.00025479,2]
[341923375,1731288647965,-500.0,0.00025479,2]
[341923376,1731288647975,-500.0,0.00025479,2]
[341923377,1731288647984,-672.78,0.00025479,2]
[341923378,1731288647994,-500.0,0.00025479,2]
[341923379,1731288648004,-500.0,0.00025479,2]
[341923380,1731288648013,-500.0,0.00025479,2]
[341923381,1731288648025,-500.0,0.00025479,2]
[341923382,1731288648035,-500.0,0.00025479,2]
[341923383,1731288648045,-500.0,0.00025479,2]
[341923384,1731288648055,-500.0,0.00025479,2]
[341923385,1731288648064,-500.0,0.00025479,2]
[341923386,1731288648074,-500.0,0.00025479,2]
[341923387,1731288648084,-151.0,0.00025479,7]
[341923388,1731288648093,-151.0,0.00025479,7]
[341923389,1731288648103,-500.0,0.00025479,2]
[341923390,1731288648115,-500.0,0.00025479,2]
[341923391,1731288648125,-764.76,0.00025479,2]
[341923392,1731288648135,-500.0,0.00025479,2]
[341923393,1731288648144,-500.0,0.00025479,2]
[341923394,1731288648155,-500.0,0.00025479,2]
[341923395,1731288648164,-500.0,0.00025479,2]
[341923396,1731288648174,-1942.56,0.00025479,2]
[341923397,1731288648185,-689.29,0.00025479,2]
[341923398,1731288648195,-500.0,0.00025479,2]
[341923399,1731288648205,-500.0,0.00025479,2]
[341923400,1731288648214,-500.0,0.00025479,2]
[341923401,1731288648224,-992.26,0.00025479,2]
[341923402,1731288648234,-500.0,0.00025479,2]
[341923403,1731288648243,-1090.86,0.00025479,2]
[341923404,1731288648253,-500.0,0.00025479,2]
[341923405,1731288648262,-500.0,0.00025479,2]
[341923406,1731288648274,-2157.53258585,0.00025479,2]
[341923407,1731288648283,-1922.82,0.00025479,2]
[341923408,1731288648293,-500.0,0.00025479,2]
[341923409,1731288648303,-500.0,0.00025479,2]
[341923410,1731288648312,-500.0,0.00025479,2]
[341923411,1731288648321,-151.0,0.00025479,7]
[341923412,1731288648331,-151.0,0.00025479,7]
[341923413,1731288648341,-500.0,0.00025479,2]
[341923414,1731288648351,-500.0,0.00025479,2]
[341923415,1731288648360,-500.0,0.00025479,2]
[341923416,1731288648370,-1629.75,0.00025479,2]
[341923417,1731288648379,-500.0,0.00025479,2]
[341923418,1731288648388,-500.0,0.00025479,2]
[341923419,1731288648398,-500.0,0.00025479,2]
[341923420,1731288648407,-500.0,0.00025479,2]
[341923421,1731288648417,-500.0,0.00025479,2]
[341923422,1731288648426,-500.0,0.00025479,2]
[341923423,1731288648435,-500.0,0.00025479,2]
[341923424,1731288648445,-500.0,0.00025479,2]
[341923425,1731288648454,-500.0,0.00025479,2]
[341923426,1731288648464,-500.0,0.00025479,2]
[341923427,1731288648474,-500.0,0.00025479,2]
[341923428,1731288648483,-500.0,0.00025479,2]
[341923429,1731288648493,-500.0,0.00025479,2]
[341923430,1731288648503,-1110.9,0.00025479,2]
[341923431,1731288648513,-758.12,0.00025479,2]
[341923432,1731288648524,-500.0,0.00025479,2]
[341923433,1731288648534,-500.0,0.00025479,2]
[341923434,1731288648543,-500.0,0.00025479,2]
[341923435,1731288648553,-500.0,0.00025479,2]
[341923436,1731288648563,-500.0,0.00025479,2]
[341923437,1731288648573,-500.0,0.00025479,2]
[341923438,1731288648583,-151.0,0.00025479,7]
[341923439,1731288648593,-260.81964,0.00025479,7]
[341923440,1731288648603,-500.0,0.00025479,2]
[341923441,1731288648612,-3180.02,0.00025479,2]
[341923442,1731288648621,-515.69,0.00025479,2]
[341923443,1731288648631,-520.72,0.00025479,2]
[341923444,1731288648641,-737.56,0.00025479,2]
[341923445,1731288648650,-1223.0,0.00025479,2]
[341923446,1731288648660,-500.0,0.00025479,2]
[341923447,1731288648669,-863.79,0.00025479,2]
[341923448,1731288648679,-500.0,0.00025479,2]
[341923449,1731288648689,-500.0,0.00025479,2]
[341923450,1731288648699,-500.0,0.00025479,2]
[341923451,1731288648708,-1146.07,0.00025479,2]
[341923452,1731288648718,-1791.94,0.00025479,2]
[341923453,1731288648727,-500.0,0.00025479,2]
[341923454,1731288648737,-500.0,0.00025479,2]
[341923455,1731288648748,-500.0,0.00025479,2]
[341923456,1731288648758,-1253.37,0.00025479,2]
[341923457,1731288648769,-500.0,0.00025479,2]
[341923458,1731288648778,-500.0,0.00025479,2]
[341923459,1731288648788,-500.0,0.00025479,2]
[341923460,1731288648798,-151.0,0.00025479,7]
[341923461,1731288648808,-151.0,0.00025479,7]
[341923462,1731288648818,-3548.7,0.00025479,2]
[341923463,1731288648827,-597.46,0.00025479,2]
[341923464,1731288648836,-500.0,0.00025479,2]